bitfinex/quotes_ETHUSD_20240603
["timestamp","ask_amount","ask_price","bid_price","bid_amount"]
[1717408701948,0.54933318,3817.4,3817.3,5.26449835]
[1717408702148,2.2754378,3817.4,3817.3,5.31061326]
[1717408705254,0.91017512,3817.4,3817.3,5.31061326]
[1717408706263,1.37317588,3818.1,3817.3,5.31061326]
[1717408706264,0.54933318,3817.6,3817.4,5.23916]
[1717408706575,5.47749435,3818.5,3817.4,5.23916]
[1717408706576,0.54933318,3817.7,3817.6,5.23888]
[1717408706736,1.36519759,3817.7,3817.6,9.01988]
[1717408706930,1.36519759,3817.7,3817.6,9.06570157]
[1717408707342,0.54933318,3817.8,3817.6,12.68197173]
[1717408707672,0.54933318,3817.9,3817.8,5.2386]
[1717408707968,2.82460221,3817.9,3817.8,9.0196]
[1717408708274,2.82460221,3817.9,3817.8,9.06532043]
[1717408709285,2.27526903,3817.9,3817.8,9.06532043]
[1717408710161,2.27526903,3817.9,3817.8,8.28432043]
[1717408710340,2.27526903,3817.9,3817.8,9.06532043]
[1717408711144,2.82460221,3817.9,3817.8,9.06532043]
[1717408711778,2.27526903,3817.9,3817.8,9.06532043]
[1717408712651,2.27526903,3817.9,3817.8,6.44602043]
[1717408715898,0.91010761,3817.9,3817.8,6.44602043]
[1717408717150,2.27528572,3817.9,3817.8,6.44602043]
[1717408718748,2.8246189,3817.9,3817.8,6.44602043]
[1717408718954,2.27528572,3817.9,3817.8,6.44602043]
[1717408719158,2.8246189,3817.9,3817.8,6.44602043]
[1717408721771,2.82466736,3817.9,3817.8,6.44602043]
[1717408722658,4.62193418,3817.9,3817.8,5.66502043]
[1717408722859,5.81136054,3817.9,3817.8,6.44602043]
[1717408723062,5.81136054,3817.9,3817.8,6.4003]
[1717408723262,6.77913058,3817.9,3817.8,6.4003]
[1717408723563,6.77913058,3817.9,3817.8,6.4460181]
[1717408723892,5.86899691,3817.9,3817.8,6.4460181]
[1717408724396,6.96830669,3817.9,3817.8,6.4460181]
[1717408725682,5.86899691,3817.9,3817.8,5.6650181]
[1717408725888,5.86899691,3817.9,3817.8,6.4460181]
[1717408726090,6.77922092,3817.9,3817.8,6.4460181]
[1717408727159,7.87662418,3817.9,3817.8,6.4460181]
[1717408727685,6.77922092,3817.9,3817.8,6.4460181]
[1717408728494,6.77922092,3817.9,3817.8,5.6650181]
[1717408728968,6.77922092,3817.9,3817.8,6.4460181]
[1717408729310,8.15019797,3817.9,3817.8,5.6650181]
[1717408729606,8.15019797,3817.9,3817.8,6.4460181]
[1717408730503,8.15019797,3817.9,3817.8,5.6650181]
[1717408730705,8.15019797,3817.9,3817.8,6.4460181]
[1717408731376,6.77922092,3817.9,3817.8,6.4460181]
[1717408732114,6.77922092,3817.9,3817.8,5.6650181]
[1717408732274,6.77922092,3817.9,3817.8,6.4460181]
[1717408733771,6.77922092,3817.9,3817.8,6.4003]
[1717408734169,6.77922092,3817.9,3817.8,6.44596851]
[1717408735010,6.77922092,3817.9,3817.8,5.66496851]
[1717408735308,6.77922092,3817.9,3817.8,6.44596851]
[1717408735871,6.77922092,3817.9,3817.8,2.66496851]
[1717408736076,2.3162,3817.8,3817.4,2.61951]
[1717408736303,2.4013,3817.6,3817.5,0.04424873]
[1717408736498,7.56708101,3817.6,3817.5,0.04424873]
[1717408736698,6.2018805,3817.6,3817.5,0.04424873]
[1717408736898,12.07702578,3817.6,3817.5,0.04424873]
[1717408737393,12.07667988,3817.6,3817.5,0.04424873]
[1717408737619,10.42971724,3817.6,3817.5,0.04424873]
[1717408737793,8.85815808,3817.6,3817.5,0.04424873]
[1717408737983,2.3304,3817.5,3817.3,0.781]
[1717408738184,8.25799693,3817.4,3817.3,0.781]
[1717408738385,6.04488537,3817.4,3817.3,0.781]
[1717408738611,7.69177043,3817.4,3817.3,0.781]
[1717408739324,6.04488537,3817.4,3817.3,0.781]
[1717408740116,4.03658366,3817.4,3817.3,0.781]
[1717408740317,5.96723543,3817.4,3817.3,0.04434989]
[1717408740686,5.96723543,3817.4,3817.2,3.0]
[1717408740886,3.97728506,3817.5,3817.2,3.781]
[1717408740887,4.38190513,3817.3,3817.2,3.781]
[1717408741337,4.38190513,3817.3,3817.2,3.0]
[1717408741630,4.38190513,3817.3,3816.8,7.28]
[1717408741631,2.4482,3817.2,3816.8,9.89998]
[1717408741927,1.37081397,3817.0,3816.9,0.781]
[1717408742135,6.97697721,3817.0,3816.9,0.781]
[1717408742700,5.60616324,3817.0,3816.9,0.781]
[1717408743152,6.9763873,3817.0,3816.9,0.781]
[1717408743300,6.9763873,3817.0,3816.9,3.781]
[1717408743511,7.83860662,3817.0,3816.9,3.0]
[1717408743899,6.46838256,3817.0,3816.7,0.781]
[1717408744253,1.37012363,3816.8,3816.5,2.781]
[1717408744451,1.09573216,3816.6,3816.5,2.781]
[1717408744658,3.15796324,3816.6,3816.5,3.562]
[1717408745319,7.2107773,3816.6,3816.5,3.562]
[1717408747906,5.14406773,3816.6,3816.5,3.562]
[1717408749044,5.14407645,3816.6,3816.5,3.562]
[1717408749705,4.32297668,3816.6,3816.5,3.562]
[1717408750153,4.87018852,3816.6,3816.5,3.562]
[1717408750753,4.87015424,3816.6,3816.5,3.562]
[1717408752927,4.87015424,3816.6,3816.5,2.781]
[1717408753126,4.87015424,3816.6,3816.5,3.562]
[1717408754641,4.87012548,3816.6,3816.5,3.562]
[1717408755319,4.87012548,3816.6,3816.5,3.60738961]
[1717408758148,3.76056602,3816.6,3816.5,3.60738961]
[1717408759415,1.36586602,3816.6,3816.5,3.60738961]
[1717408760110,0.54717756,3816.8,3816.6,2.62013]
[1717408760311,0.54717756,3816.8,3816.7,3.781]
[1717408760610,1.91295156,3816.8,3816.7,3.82628841]
[1717408761266,1.91294281,3816.8,3816.7,3.82628841]
[1717408762254,1.36576525,3816.8,3816.7,3.82628841]
[1717408763362,2.18686502,3816.8,3816.7,3.82628841]
[1717408766260,2.75319065,3816.8,3816.7,3.82628841]
[1717408766619,3.67072366,3816.8,3816.7,3.82628841]
[1717408767468,6.17120609,3816.8,3816.7,3.82628841]
[1717408767645,6.17120609,3816.8,3816.7,3.781]
[1717408767955,6.17120609,3816.8,3816.7,3.82628841]
[1717408769352,5.69554283,3816.8,3816.7,3.82628841]
[1717408772290,4.59981067,3816.8,3816.7,3.82628841]
[1717408774540,5.96702258,3816.8,3816.7,3.82628841]
[1717408775350,4.59981067,3816.8,3816.7,3.82628841]
[1717408776167,5.96961937,3816.8,3816.7,3.82628841]
[1717408776472,4.59981067,3816.8,3816.7,3.82628841]
[1717408776901,2.66771979,3816.8,3816.7,3.82628841]
[1717408777137,3.68238734,3816.8,3816.7,3.82628841]
[1717408778321,3.68238734,3816.8,3816.7,3.04528841]
[1717408779424,5.61052367,3816.8,3816.7,3.04528841]
[1717408779939,5.61052367,3816.8,3816.7,3.0]
[1717408780275,7.2546309,3816.8,3816.7,3.04527424]
[1717408780812,8.24675399,3816.8,3816.7,3.04527424]
[1717408781418,4.6704462,3816.8,3816.7,3.04527424]
[1717408781585,6.60271982,3816.8,3816.7,0.04527424]
[1717408781975,6.60271197,3816.8,3816.7,0.04527424]
[1717408782885,7.51331338,3816.8,3816.7,0.04527424]
[1717408783282,7.51331572,3816.8,3816.7,0.04527424]
[1717408783805,7.51331572,3816.8,3816.6,0.781]
[1717408784003,6.25435578,3816.7,3816.6,0.781]
[1717408784209,6.82071947,3816.7,3816.6,0.781]
[1717408785508,6.82071947,3816.7,3816.4,3.0]
[1717408785713,1.21012917,3816.7,3816.6,0.781]
[1717408786008,5.54405331,3816.7,3816.6,0.82635791]
[1717408786195,5.54405331,3816.7,3816.6,0.04535791]
[1717408786573,5.54405331,3816.7,3816.5,0.781]
[1717408786807,7.11450259,3816.6,3816.5,0.781]
[1717408787184,7.11450259,3816.6,3816.4,3.0]
[1717408787385,1.57045128,3816.6,3816.5,0.781]
[1717408787617,8.76185417,3816.6,3816.5,0.781]
[1717408787798,8.76185417,3816.6,3816.4,3.0]
[1717408788004,4.97729757,3816.5,3816.4,3.0]
[1717408788217,4.97729757,3816.5,3816.4,3.781]
[1717408788511,5.54365679,3816.5,3816.4,3.781]
[1717408788729,7.19139641,3816.5,3816.4,3.781]
[1717408790073,7.19139641,3816.5,3816.4,3.0]
[1717408790273,7.19139641,3816.5,3816.4,3.781]
[1717408793237,8.76184769,3816.5,3816.4,3.781]
[1717408793392,8.76280852,3816.5,3816.4,3.781]
[1717408793739,7.19198617,3816.5,3816.4,3.781]
[1717408794197,7.11446201,3816.5,3816.4,3.781]
[1717408794827,8.7627839,3816.5,3816.4,3.781]
[1717408795896,6.62560281,3816.5,3816.4,3.781]
[1717408796140,8.76288646,3816.5,3816.4,3.781]
[1717408796317,7.11456457,3816.5,3816.4,3.781]
[1717408796714,5.54365079,3816.5,3816.4,3.781]
[1717408799541,5.54365079,3816.5,3816.4,0.781]
[1717408800842,8.76308564,3816.5,3816.4,0.781]
[1717408801338,8.76308564,3816.5,3816.4,1.348373]
[1717408801541,8.76308564,3816.5,3816.4,3.841373]
[1717408801740,3.08333694,3816.5,3816.4,3.060373]
[1717408801947,3.08333694,3816.5,3816.4,6.841373]
[1717408802516,4.18230159,3816.5,3816.4,6.841373]
[1717408803045,3.08333694,3816.5,3816.4,6.841373]
[1717408803248,1.91525222,3816.5,3816.4,6.841373]
[1717408803543,1.36589799,3816.5,3816.4,6.841373]
[1717408803760,1.09896465,3816.9,3816.4,6.841373]
[1717408803761,0.54935423,3816.7,3816.5,2.6202]
[1717408803925,0.54935423,3816.7,3816.6,7.0023903]
[1717408804320,1.36546828,3816.7,3816.6,7.0023903]
[1717408804854,1.91482251,3816.7,3816.6,7.0023903]
[1717408805260,0.54935423,3816.8,3816.7,2.62006]
[1717408805416,1.91480753,3816.8,3816.7,9.47759233]
[1717408805621,1.3654533,3816.8,3816.7,9.47759233]
[1717408806364,1.91480904,3816.8,3816.7,9.47759233]
[1717408806962,1.36545481,3816.8,3816.7,9.47759233]
[1717408807740,0.54935423,3816.9,3816.7,9.47759233]
[1717408807958,0.54935423,3816.9,3816.8,4.04364826]
[1717408808125,1.91480653,3816.9,3816.8,4.82464826]
[1717408809642,1.3654523,3816.9,3816.8,4.82464826]
[1717408810168,1.91383761,3816.9,3816.8,4.82464826]
[1717408811626,1.3654523,3816.9,3816.8,4.82464826]
[1717408812056,1.9136806,3816.9,3816.8,4.82464826]
[1717408812869,1.9136806,3816.9,3816.8,3.781]
[1717408813847,1.3654523,3816.9,3816.8,3.781]
[1717408814262,1.91348318,3816.9,3816.8,3.781]
[1717408815225,1.36558987,3816.9,3816.8,6.40099]
[1717408815434,1.91361895,3816.9,3816.8,6.40099]
[1717408816065,1.91361895,3816.9,3816.8,7.269469]
[1717408816263,0.54802908,3817.1,3816.8,7.269469]
[1717408816580,1.36550283,3817.0,3816.8,6.488469]
[1717408816785,1.36550283,3816.9,3816.8,6.488469]
[1717408816989,1.36550283,3816.9,3816.8,7.269469]
[1717408817337,0.54802908,3817.0,3816.8,7.269469]
[1717408818313,1.36554549,3816.9,3816.8,7.269469]
[1717408818485,1.91357457,3816.9,3816.8,5.61999]
[1717408818831,1.91357457,3816.9,3816.8,6.40099]
[1717408820087,1.36554549,3816.9,3816.8,6.40099]
[1717408820416,0.54802908,3817.0,3816.8,6.40099]
[1717408821599,0.54802908,3817.1,3816.8,6.40099]
[1717408821781,1.36551509,3817.0,3816.8,6.750477]
[1717408822088,1.09896465,3817.4,3817.0,2.61985]
[1717408822089,0.54802908,3817.2,3817.0,2.61985]
[1717408822284,0.54802908,3817.2,3817.1,3.0]
[1717408822612,0.82428038,3817.3,3817.2,2.61972]
[1717408822809,3.10956094,3817.3,3817.2,3.40072]
[1717408823606,2.18703644,3817.3,3817.2,3.40072]
[1717408824833,3.10939547,3817.3,3817.2,3.40072]
[1717408825136,2.18698043,3817.3,3817.2,3.40072]
[1717408826121,1.36553114,3817.3,3817.2,3.40072]
[1717408826323,3.10925377,3817.3,3817.2,3.40072]
[1717408826630,4.76604641,3817.3,3817.2,3.40072]
[1717408826835,6.64871842,3817.3,3817.2,3.44399704]
[1717408827193,5.54975377,3817.3,3817.2,3.44399704]
[1717408827495,5.54975377,3817.3,3817.2,2.66299704]
[1717408827697,5.54975377,3817.3,3817.2,0.04327704]
[1717408827923,6.6179437,3817.3,3817.2,0.04327704]
[1717408828125,6.6179437,3817.3,3816.9,2.61992]
[1717408828325,1.56979349,3817.1,3816.9,2.61992]
[1717408828505,1.56979349,3817.1,3817.0,0.04336877]
[1717408828712,4.60907973,3817.1,3817.0,0.04336877]
[1717408828950,5.74224342,3817.1,3816.9,2.61992]
[1717408829149,5.97779603,3817.0,3816.9,2.61992]
[1717408829328,4.50098161,3817.0,3816.9,2.61992]
[1717408829539,4.50098161,3817.0,3816.9,3.40092]
[1717408830176,3.13226531,3817.0,3816.9,3.40092]
[1717408831770,4.50098161,3817.0,3816.9,2.61992]
[1717408831973,5.46542549,3817.0,3816.9,3.40092]
[1717408832264,2.3008,3816.9,3816.5,3.40113]
[1717408832471,1.09557247,3816.6,3816.5,3.40113]
[1717408832774,4.22783778,3816.6,3816.5,6.40113]
[1717408835993,4.22783778,3816.6,3816.5,5.62013]
[1717408836157,4.22783778,3816.6,3816.5,6.40113]
[1717408837265,3.13226531,3816.6,3816.5,6.40113]
[1717408837608,3.13226531,3816.6,3816.5,2.62013]
[1717408837911,4.22783778,3816.6,3816.5,3.40113]
[1717408838129,4.22783778,3816.6,3816.5,2.62013]
[1717408838422,3.78512909,3816.6,3816.5,2.62013]
[1717408839309,5.15529152,3816.6,3816.5,2.62013]
[1717408839481,3.78512909,3816.6,3816.5,2.66407757]
[1717408840577,5.15529838,3816.6,3816.5,2.66407757]
[1717408841388,4.5024346,3816.6,3816.5,2.66407757]
[1717408841703,3.13226531,3816.6,3816.5,2.66407757]
[1717408842199,4.5024346,3816.6,3816.5,2.66407757]
[1717408842398,3.13226531,3816.6,3816.5,2.66407757]
[1717408842616,4.22845034,3816.6,3816.5,2.66407757]
[1717408842972,3.13226531,3816.6,3816.5,2.66407757]
[1717408843177,4.22845034,3816.6,3816.5,2.66407757]
[1717408847212,3.13226531,3816.6,3816.5,2.66407757]
[1717408848326,4.22845034,3816.6,3816.5,2.66407757]
[1717408848499,3.13226531,3816.6,3816.5,2.66407757]
[1717408848831,4.22845034,3816.6,3816.5,2.66407757]
[1717408851145,4.5024346,3816.6,3816.5,2.66407757]
[1717408852038,4.4998346,3816.6,3816.5,2.66407757]
[1717408855029,3.12966531,3816.6,3816.5,2.66407757]
[1717408855200,5.26710309,3816.6,3816.5,2.66407757]
[1717408855398,5.26710309,3816.6,3816.5,3.44507757]
[1717408855593,3.12966531,3816.6,3816.5,3.44507757]
[1717408856255,1.76649954,3816.6,3816.5,3.44507757]
[1717408856398,2.33284624,3816.6,3816.5,3.44507757]
[1717408857221,3.90507372,3816.6,3816.5,3.44507757]
[1717408857610,3.70459838,3816.6,3816.5,3.44507757]
[1717408857843,3.70458555,3816.6,3816.5,3.44507757]
[1717408861340,5.27681303,3816.6,3816.5,3.44507757]
[1717408861912,6.64266997,3816.6,3816.5,3.44507757]
[1717408862339,5.27091783,3816.6,3816.5,3.44507757]
[1717408862855,5.27154934,3816.6,3816.5,3.44507757]
[1717408866352,5.27154934,3816.6,3816.5,3.78958533]
[1717408866554,3.69870811,3816.6,3816.5,3.78958533]
[1717408866735,3.13236349,3816.6,3816.5,6.15208533]
[1717408866931,4.23062781,3816.6,3816.5,6.15208533]
[1717408867322,3.13236349,3816.6,3816.5,6.15208533]
[1717408867528,1.36586395,3816.6,3816.5,9.15208533]
[1717408867724,1.91505331,3816.6,3816.5,9.15208533]
[1717408868458,1.91505331,3816.6,3816.5,11.77228533]
[1717408870848,1.91505331,3816.6,3816.5,10.99128533]
[1717408871057,1.36586395,3816.6,3816.5,9.15208533]
[1717408871375,2.18965832,3816.6,3816.5,9.15208533]
[1717408872485,2.18965832,3816.6,3816.5,8.37108533]
[1717408872624,2.18965832,3816.6,3816.5,9.15208533]
[1717408872828,2.18965832,3816.6,3816.5,8.37108533]
[1717408873026,2.18965832,3816.6,3816.5,6.78958533]
[1717408873264,2.18965832,3816.6,3816.5,6.44507757]
[1717408873863,4.18957613,3816.6,3816.5,6.44507757]
[1717408874310,3.09131181,3816.6,3816.5,6.44507757]
[1717408875423,2.18957053,3816.6,3816.5,6.44507757]
[1717408875713,3.08902753,3816.6,3816.5,6.44507757]
[1717408875917,3.08902753,3816.6,3816.5,7.32379533]
[1717408878331,2.18951465,3816.6,3816.5,7.32379533]
[1717408879424,2.18951465,3816.6,3816.5,6.54279533]
[1717408879581,2.18951465,3816.6,3816.5,7.32379533]
[1717408879582,3.08888555,3816.6,3816.5,7.32379533]
[1717408880407,4.18714987,3816.6,3816.5,7.32379533]
[1717408881018,4.18714987,3816.6,3816.5,5.66407757]
[1717408881216,3.08888555,3816.6,3816.5,6.44507757]
[1717408882129,4.46177692,3816.6,3816.5,6.44507757]
[1717408885495,4.46177692,3816.6,3816.5,5.66407757]
[1717408885695,3.08888555,3816.6,3816.5,6.44507757]
[1717408886220,4.46176097,3816.6,3816.5,6.44507757]
[1717408886732,3.08888555,3816.6,3816.5,6.44507757]
[1717408888395,3.08888555,3816.6,3816.5,2.66407757]
[1717408888396,3.96339669,3816.6,3816.5,2.66407757]
[1717408888597,5.85134231,3816.6,3816.5,2.66407757]
[1717408888827,9.63652139,3816.6,3816.5,2.66407757]
[1717408889629,8.06448049,3816.6,3816.5,2.66407757]
[1717408889811,8.06530376,3816.6,3816.5,2.66407757]
[1717408891303,8.06530376,3816.6,3816.5,3.44507757]
[1717408891742,8.06530819,3816.6,3816.5,3.44507757]
[1717408892698,8.06530819,3816.6,3816.5,2.66407757]
[1717408893847,8.06530819,3816.6,3816.5,0.04394757]
[1717408894226,7.989902,3816.6,3816.3,0.781]
[1717408894410,2.44669151,3816.6,3816.5,0.03894028]
[1717408894749,7.95746622,3816.6,3816.5,0.03894028]
[1717408895045,7.95746622,3816.6,3816.3,0.781]
[1717408895250,4.09385066,3816.6,3816.5,0.03894028]
[1717408895432,9.60460406,3816.6,3816.4,0.03899088]
[1717408895637,4.9443835,3816.5,3816.4,0.03899088]
[1717408899121,4.9443835,3816.5,3816.3,0.781]
[1717408899324,3.06642825,3816.4,3816.3,0.781]
[1717408899751,3.06644963,3816.4,3816.3,0.781]
[1717408902062,3.06644963,3816.4,3816.3,0.81892852]
[1717408905178,3.06644963,3816.4,3816.3,0.03792852]
[1717408905352,3.06644963,3816.4,3816.3,0.781]
[1717408905555,3.06644963,3816.4,3816.3,0.81892852]
[1717408905758,3.06642997,3816.4,3816.3,0.81892852]
[1717408910239,3.63280097,3816.4,3816.3,0.81892852]
[1717408910883,3.63280096,3816.4,3816.3,0.81892852]
[1717408911948,3.63279932,3816.4,3816.3,0.81892852]
[1717408913195,5.20522604,3816.4,3816.3,0.81892852]
[1717408915639,1.70050333,3816.4,3816.3,0.81892852]
[1717408915995,5.20533813,3816.4,3816.3,0.81892852]
[1717408917082,5.20542113,3816.4,3816.3,0.81892852]
[1717408918473,3.63279496,3816.4,3816.3,0.81892852]
[1717408920789,5.20560158,3816.4,3816.3,0.81892852]
[1717408921591,5.00604333,3816.4,3816.3,6.79093937]
[1717408921770,4.16508741,3816.4,3816.3,6.79093937]
[1717408921939,2.18992032,3816.4,3816.3,6.79093937]
[1717408922244,1.36592266,3816.4,3816.3,6.79093937]
[1717408923181,2.18992032,3816.4,3816.3,6.79093937]
[1717408923363,1.36592266,3816.4,3816.3,6.79093937]
[1717408923960,2.18992032,3816.4,3816.3,6.79093937]
[1717408925110,1.36592266,3816.4,3816.3,6.79093937]
[1717408925692,2.18992032,3816.4,3816.3,6.79093937]
[1717408926933,1.36592266,3816.4,3816.3,6.79093937]
[1717408929032,0.82399766,3816.5,3816.3,6.79093937]
[1717408929033,0.82399766,3816.5,3816.4,2.62027]
[1717408929185,2.18964596,3816.5,3816.4,6.82342894]
[1717408929389,2.18964596,3816.5,3816.4,6.86115869]
[1717408929588,2.18964596,3816.5,3816.4,9.48142869]
[1717408930006,2.18964596,3816.5,3816.4,6.86115869]
[1717408930211,2.18964596,3816.5,3816.4,7.64215869]
[1717408930737,3.09857626,3816.5,3816.4,7.64215869]
[1717408933106,2.1895468,3816.5,3816.4,7.64215869]
[1717408934035,2.18958772,3816.5,3816.4,7.64215869]
[1717408934663,2.18958819,3816.5,3816.4,7.64215869]
[1717408936277,2.18958819,3816.5,3816.4,12.58832869]
[1717408936587,1.36568969,3816.5,3816.4,12.58832869]
[1717408937221,0.54891013,3816.6,3816.5,2.6202]
[1717408937564,1.91450075,3816.6,3816.5,9.2995351]
[1717408938227,1.91450075,3816.6,3816.5,11.9197351]
[1717408940442,1.36559062,3816.6,3816.5,11.9197351]
[1717408941050,0.54891013,3816.7,3816.6,2.62013]
[1717408941360,1.91450574,3816.7,3816.6,10.64787465]
[1717408943971,1.91450574,3816.7,3816.6,8.02774465]
[1717408944780,1.36559561,3816.7,3816.6,8.02774465]
[1717408951722,1.36559561,3816.7,3816.6,7.24674465]
[1717408951908,1.36559561,3816.7,3816.6,5.65635705]
[1717408952078,2.46425703,3816.7,3816.6,6.43735705]
[1717408952284,4.14453193,3816.7,3816.6,6.43735705]
[1717408954792,4.14453193,3816.7,3816.6,5.65635705]
[1717408955226,4.14453193,3816.7,3816.6,6.43735705]
[1717408958227,4.14453193,3816.7,3816.6,8.72595705]
[1717408958414,3.04592498,3816.7,3816.6,9.86058075]
[1717408958610,2.18955306,3816.7,3816.6,9.86058075]
[1717408959112,1.36565008,3816.7,3816.6,9.86058075]
[1717408959314,1.36565008,3816.7,3816.6,12.48071075]
[1717408959744,1.9149396,3816.7,3816.6,12.48071075]
[1717408960111,1.36565008,3816.7,3816.6,12.48071075]
[1717408961817,1.36565008,3816.7,3816.6,6.79098075]
[1717408962118,3.04405734,3816.7,3816.6,6.43735705]
[1717408962510,4.14271876,3816.7,3816.6,6.43735705]
[1717408964204,3.04405734,3816.7,3816.6,6.43735705]
[1717408965252,4.41724186,3816.7,3816.6,9.05748705]
[1717408965416,4.41724186,3816.7,3816.6,7.60513376]
[1717408965615,3.04405734,3816.7,3816.6,9.88173376]
[1717408965831,4.14397606,3816.7,3816.6,9.88173376]
[1717408966226,3.04405734,3816.7,3816.6,12.50186376]
[1717408966633,4.14391702,3816.7,3816.6,12.50186376]
[1717408967243,4.14391702,3816.7,3816.6,7.60513376]
[1717408967649,3.0439844,3816.7,3816.6,7.60513376]
[1717408967854,5.32930711,3816.7,3816.6,7.60513376]
[1717408972442,3.95439111,3816.7,3816.6,7.60513376]
[1717408973360,3.95439111,3816.7,3816.6,6.43735705]
[1717408976701,5.32948872,3816.7,3816.6,6.43735705]
[1717408977347,3.95439111,3816.7,3816.6,6.43735705]
[1717408982340,5.99015046,3816.7,3816.6,6.43735705]
[1717408982619,5.99036611,3816.7,3816.6,6.43735705]
[1717408983373,3.95460676,3816.7,3816.6,6.43735705]
[1717408983780,3.95460676,3816.7,3816.6,5.65635705]
[1717408983991,5.99001184,3816.7,3816.6,6.43735705]
[1717408984886,5.98996819,3816.7,3816.6,6.43735705]
[1717408986082,5.98996819,3816.7,3816.6,5.65635705]
[1717408986402,5.98996819,3816.7,3816.6,6.43735705]
[1717408987214,3.95456311,3816.7,3816.6,6.43735705]
[1717408987930,3.95456311,3816.7,3816.6,5.65635705]
[1717408988149,3.95456311,3816.7,3816.6,6.43735705]
[1717408988150,5.95837399,3816.7,3816.6,6.43735705]
[1717408988438,7.60829138,3816.7,3816.6,6.43735705]
[1717408988599,5.95837399,3816.7,3816.6,6.43735705]
[1717408989599,8.27707399,3816.7,3816.6,0.03622705]
[1717408989908,9.99334356,3816.7,3816.4,0.781]
[1717408990121,1.57285185,3816.5,3816.4,0.781]
[1717408990315,10.41627048,3816.5,3816.4,0.781]
[1717408990732,8.84341863,3816.5,3816.4,0.781]
[1717408991101,10.415947,3816.5,3816.4,0.781]
[1717408991433,11.76503049,3816.5,3816.4,0.781]
[1717408991731,10.19250212,3816.5,3816.4,0.781]
[1717408991936,10.19250212,3816.5,3816.4,0.81417708]
[1717408993229,11.76521966,3816.5,3816.4,0.81417708]
[1717408993407,9.99890494,3816.5,3816.4,0.81417708]
[1717408994209,8.4261874,3816.5,3816.4,0.81417708]
[1717408995228,8.27707399,3816.5,3816.4,0.81417708]
[1717408995408,8.27707399,3816.5,3816.4,0.03317708]
[1717408995609,8.27707399,3816.5,3816.4,0.781]
[1717408995811,8.27707399,3816.5,3816.4,0.81302309]
[1717408997142,9.92437206,3816.5,3816.4,0.81302309]
[1717408997347,8.27707399,3816.5,3816.4,0.81302309]
[1717408997719,9.92423226,3816.5,3816.4,0.81302309]
[1717408998130,9.92417742,3816.5,3816.4,0.81302309]
[1717408999480,7.60579197,3816.5,3816.4,0.81302309]
[1717408999622,3.95497766,3816.5,3816.4,1.4563664]
[1717409000217,5.05301707,3816.5,3816.4,1.4563664]
[1717409000445,3.95497766,3816.5,3816.4,4.4563664]
[1717409000624,3.10006165,3816.5,3816.4,4.4563664]
[1717409001029,3.10006165,3816.5,3816.4,6.8840664]
[1717409001434,2.2765704,3816.5,3816.4,7.4340664]
[1717409001641,0.54898134,3816.7,3816.4,7.4340664]
[1717409001826,2.27585555,3816.6,3816.5,3.62563364]
[1717409002022,2.27585555,3816.6,3816.5,7.43870246]
[1717409002349,0.54898134,3816.7,3816.5,6.65770246]
[1717409002553,0.54898134,3816.7,3816.6,3.0]
[1717409002845,1.91450893,3816.7,3816.6,3.03201821]
[1717409003045,1.91450893,3816.7,3816.6,4.40001473]
[1717409003415,1.36552759,3816.7,3816.6,4.40001473]
[1717409003620,0.54898134,3816.8,3816.7,2.62006]
[1717409003882,1.36549869,3816.8,3816.7,6.43302762]
[1717409004223,0.54898134,3817.0,3816.7,6.43302762]
[1717409004418,0.54898134,3817.0,3816.9,3.40092]
[1717409004785,1.36542124,3817.0,3816.9,3.43278643]
[1717409004913,1.36542124,3817.0,3816.9,6.43278643]
[1717409005635,0.54898134,3817.1,3816.9,6.43278643]
[1717409005858,0.54898134,3817.1,3817.0,3.0]
[1717409006064,1.91438756,3817.1,3817.0,4.10381672]
[1717409006476,1.91438771,3817.1,3817.0,4.10381672]
[1717409007845,1.36540637,3817.1,3817.0,4.10381672]
[1717409008045,1.09803941,3817.5,3817.0,4.10381672]
[1717409008046,0.54898134,3817.3,3817.1,5.06778]
[1717409008276,0.54898134,3817.3,3817.2,4.34396633]
[1717409008547,1.36536539,3817.3,3817.2,4.34396633]
[1717409009348,0.54898134,3817.4,3817.3,2.61965]
[1717409009574,1.91433239,3817.4,3817.3,6.40065]
[1717409009774,1.91433239,3817.4,3817.3,6.43231408]
[1717409009991,1.91433239,3817.4,3817.3,7.71354866]
[1717409011281,1.36535105,3817.4,3817.3,7.71354866]
[1717409011475,1.36535105,3817.4,3817.3,6.93254866]
[1717409011705,1.36535105,3817.4,3817.3,7.71354866]
[1717409012006,1.36535105,3817.4,3817.3,6.43231408]
[1717409012337,1.91433239,3817.4,3817.3,6.43231408]
[1717409012482,4.16225735,3817.4,3817.3,6.43231408]
[1717409014922,3.06421794,3817.4,3817.3,6.43231408]
[1717409015491,3.06421794,3817.4,3817.3,5.65131408]
[1717409015679,4.16225735,3817.4,3817.3,5.65131408]
[1717409015879,4.16225735,3817.4,3817.3,6.43231408]
[1717409016078,4.16225735,3817.4,3817.3,5.65131408]
[1717409016281,4.16225735,3817.4,3817.3,6.43231408]
[1717409019441,4.16241763,3817.4,3817.3,6.43231408]
[1717409020233,3.06437822,3817.4,3817.3,6.43231408]
[1717409020607,4.16241763,3817.4,3817.3,6.40065]
[1717409021154,4.16241763,3817.4,3817.3,6.42989921]
[1717409022659,3.06437822,3817.4,3817.3,6.42989921]
[1717409023662,3.06437822,3817.4,3817.3,6.40065]
[1717409024040,3.06437822,3817.4,3817.3,6.43004944]
[1717409024732,1.36551133,3817.4,3817.3,6.43004944]
[1717409024938,1.36551133,3817.4,3817.3,7.07305438]
[1717409024939,1.91362743,3817.4,3817.3,7.07305438]
[1717409025126,0.5481161,3817.5,3817.3,7.07305438]
[1717409025323,0.5481161,3817.5,3817.4,3.0]
[1717409025527,1.36537674,3817.5,3817.4,3.0]
[1717409025723,1.91349284,3817.5,3817.4,3.02934886]
[1717409026440,1.91349284,3817.5,3817.4,3.73664924]
[1717409027526,1.91349284,3817.5,3817.4,4.51764924]
[1717409028863,0.5481161,3817.5,3817.4,4.51764924]
[1717409029056,1.91347956,3817.5,3817.4,4.51764924]
[1717409029260,1.36536346,3817.5,3817.4,4.51764924]
[1717409033028,0.5481161,3817.6,3817.5,2.61951]
[1717409033224,1.91348001,3817.6,3817.5,5.61951]
[1717409033455,1.91348001,3817.6,3817.5,6.9886723]
[1717409033965,1.91348001,3817.6,3817.5,7.7696723]
[1717409034165,1.91348001,3817.6,3817.5,6.42969088]
[1717409035977,1.91348001,3817.6,3817.5,5.64869088]
[1717409036163,1.91348001,3817.6,3817.5,6.42969088]
[1717409036984,1.91348001,3817.6,3817.5,5.64869088]
[1717409037295,1.91348001,3817.6,3817.5,6.42969088]
[1717409039267,1.36536391,3817.6,3817.5,6.42969088]
[1717409039648,1.91340482,3817.6,3817.5,6.42969088]